[Event "*** Titled Tuesday Blitz"]
[Site "Chess.com"]
[Date "2020.05.12"]
[Round "5"]
[White "TST2014"]
[Black "Alexander_Moskalenko"]
[Result "0-1"]
[WhiteElo "2591"]
[BlackElo "2824"]
[TimeControl "180+1"]
[EndTime "10:57:02 PDT"]
[Termination "Alexander_Moskalenko won by checkmate"]

1. d4 {[%clk 0:03:00.9]} 1... d5 {[%clk 0:02:58.2]} 2. c4 {[%clk 0:03:00.6]}
2... e6 {[%clk 0:02:54.2]} 3. Nf3 {[%clk 0:03:00.2]} 3... Nf6 {[%clk 0:02:53.8]}
4. Nc3 {[%clk 0:03:00.4]} 4... Bb4 {[%clk 0:02:53.2]} 5. e3 {[%clk 0:02:58.1]}
5... O-O {[%clk 0:02:52.6]} 6. Bd2 {[%clk 0:02:57.3]} 6... b6 {[%clk 0:02:48.7]}
7. cxd5 {[%clk 0:02:54.5]} 7... exd5 {[%clk 0:02:43.9]} 8. a3 {[%clk 0:02:53]}
8... Bd6 {[%clk 0:02:43.3]} 9. b4 {[%clk 0:02:51.3]} 9... a6 {[%clk 0:02:42.7]}
10. Qb3 {[%clk 0:02:49.9]} 10... Bb7 {[%clk 0:02:42.5]} 11. Bd3 {[%clk
0:02:47.9]} 11... Nbd7 {[%clk 0:02:42.7]} 12. O-O {[%clk 0:02:47.1]} 12... Re8
{[%clk 0:02:41]} 13. Qc2 {[%clk 0:02:33.8]} 13... g6 {[%clk 0:02:35]} 14. Rab1
{[%clk 0:02:31.2]} 14... Qe7 {[%clk 0:02:26.5]} 15. h3 {[%clk 0:02:27.6]} 15...
Ne4 {[%clk 0:02:26.9]} 16. Rfc1 {[%clk 0:02:21.4]} 16... Ndf6 {[%clk 0:02:22.5]}
17. Be1 {[%clk 0:02:20.6]} 17... h5 {[%clk 0:02:21.6]} 18. Nd2 {[%clk
0:02:14.4]} 18... Ng5 {[%clk 0:02:12.5]} 19. Bf1 {[%clk 0:02:02.8]} 19... Ne6
{[%clk 0:02:08.2]} 20. Nf3 {[%clk 0:01:59.7]} 20... Ng7 {[%clk 0:02:06.9]} 21.
Ne2 {[%clk 0:01:57.2]} 21... Ne4 {[%clk 0:01:53.7]} 22. Bc3 {[%clk 0:01:48]}
22... Nf5 {[%clk 0:01:34.2]} 23. Be1 {[%clk 0:01:44.2]} 23... Rac8 {[%clk
0:01:29.7]} 24. Nf4 {[%clk 0:01:40.7]} 24... h4 {[%clk 0:01:24.8]} 25. Nd3
{[%clk 0:01:40.3]} 25... f6 {[%clk 0:01:20.7]} 26. Qe2 {[%clk 0:01:28.4]} 26...
Kg7 {[%clk 0:01:19.9]} 27. Nd2 {[%clk 0:01:24.2]} 27... Ng5 {[%clk 0:01:10.3]}
28. Nf3 {[%clk 0:01:22]} 28... Nf7 {[%clk 0:01:09.6]} 29. Nc5 {[%clk 0:01:18.4]}
29... bxc5 {[%clk 0:00:55.1]} 30. bxc5 {[%clk 0:01:18.1]} 30... Bc6 {[%clk
0:00:47.4]} 31. Qxa6 {[%clk 0:01:12.6]} 31... Qd7 {[%clk 0:00:39.3]} 32. cxd6
{[%clk 0:01:10.6]} 32... cxd6 {[%clk 0:00:40.2]} 33. Rb6 {[%clk 0:01:03.6]}
33... Ba8 {[%clk 0:00:33.7]} 34. Bb5 {[%clk 0:00:59.2]} 34... Qxb5 {[%clk
0:00:21.6]} 35. Qxb5 {[%clk 0:00:53.7]} 35... Rxc1 {[%clk 0:00:22.5]} 36. Rb8
{[%clk 0:00:48.6]} 36... Rxb8 {[%clk 0:00:20.4]} 37. Qxb8 {[%clk 0:00:48]} 37...
Bc6 {[%clk 0:00:20.4]} 38. Qb2 {[%clk 0:00:46.1]} 38... Rc4 {[%clk 0:00:17.7]}
39. Bb4 {[%clk 0:00:43.9]} 39... Ba4 {[%clk 0:00:16.8]} 40. Qd2 {[%clk
0:00:29.4]} 40... Rc2 {[%clk 0:00:16.1]} 41. Qd3 {[%clk 0:00:28.9]} 41... Rc1+
{[%clk 0:00:10.9]} 42. Kh2 {[%clk 0:00:28.4]} 42... Rc4 {[%clk 0:00:11.8]} 43.
Nd2 {[%clk 0:00:26]} 43... Bc2 {[%clk 0:00:12.3]} 44. Qe2 {[%clk 0:00:25.6]}
44... Rc8 {[%clk 0:00:12.6]} 45. Qa6 {[%clk 0:00:25]} 45... Rc7 {[%clk 0:00:11]}
46. a4 {[%clk 0:00:25]} 46... Bd1 {[%clk 0:00:09]} 47. a5 {[%clk 0:00:24.9]}
47... Rc2 {[%clk 0:00:08.8]} 48. Qb7 {[%clk 0:00:22.2]} 48... Be2 {[%clk
0:00:03]} 49. a6 {[%clk 0:00:21.4]} 49... Bxa6 {[%clk 0:00:03.9]} 50. Qxa6
{[%clk 0:00:21.8]} 50... Rb2 {[%clk 0:00:04.8]} 51. Qa5 {[%clk 0:00:20.1]} 51...
g5 {[%clk 0:00:02.3]} 52. Qa3 {[%clk 0:00:18.6]} 52... Rc2 {[%clk 0:00:01.8]}
53. Qd3 {[%clk 0:00:18.2]} 53... Rb2 {[%clk 0:00:02.3]} 54. Qxf5 {[%clk
0:00:18.2]} 54... Rxb4 {[%clk 0:00:02.9]} 55. Qxd5 {[%clk 0:00:18.2]} 55... Rb1
{[%clk 0:00:03.8]} 56. Nf3 {[%clk 0:00:18.1]} 56... Rb2 {[%clk 0:00:03.6]} 57.
Qe6 {[%clk 0:00:17.8]} 57... Rxf2 {[%clk 0:00:03.5]} 58. d5 {[%clk 0:00:17.9]}
58... Re2 {[%clk 0:00:03.4]} 59. Nd4 {[%clk 0:00:17.9]} 59... Rf2 {[%clk
0:00:02.7]} 60. Nf5+ {[%clk 0:00:18]} 60... Kg6 {[%clk 0:00:03.1]} 61. Nxd6
{[%clk 0:00:17.2]} 61... Ne5 {[%clk 0:00:03.4]} 62. Qe8+ {[%clk 0:00:14.5]}
62... Kg7 {[%clk 0:00:03.2]} 63. Ne4 {[%clk 0:00:11.8]} 63... Nf3+ {[%clk
0:00:02.2]} 64. Kh1 {[%clk 0:00:01.7]} 64... Rf1# {[%clk 0:00:03.1]} 0-1

[Event "*** Titled Tuesday Blitz"]
[Site "Chess.com"]
[Date "2020.05.12"]
[Round "5"]
[White "Oneofmyturns"]
[Black "gross-aleks"]
[Result "0-1"]
[WhiteElo "2643"]
[BlackElo "2483"]
[TimeControl "180+1"]
[EndTime "10:57:04 PDT"]
[Termination "gross-aleks won by resignation"]

1. d4 {[%clk 0:03:00.9]} 1... Nf6 {[%clk 0:02:59]} 2. c4 {[%clk 0:03:01.3]} 2...
e6 {[%clk 0:02:59.2]} 3. Nc3 {[%clk 0:03:00.9]} 3... Bb4 {[%clk 0:02:58.8]} 4.
Nf3 {[%clk 0:03:01.5]} 4... Ne4 {[%clk 0:02:51.6]} 5. Qd3 {[%clk 0:02:52.6]}
5... f5 {[%clk 0:02:50.6]} 6. Nd2 {[%clk 0:02:40.9]} 6... Nxc3 {[%clk
0:02:12.4]} 7. bxc3 {[%clk 0:02:41.8]} 7... Be7 {[%clk 0:02:11.3]} 8. g3 {[%clk
0:02:42]} 8... O-O {[%clk 0:02:08.3]} 9. Bg2 {[%clk 0:02:42.2]} 9... d6 {[%clk
0:02:06.1]} 10. e4 {[%clk 0:02:39.5]} 10... Nc6 {[%clk 0:02:01.7]} 11. O-O
{[%clk 0:02:37.4]} 11... e5 {[%clk 0:01:53.1]} 12. Re1 {[%clk 0:02:32.4]} 12...
f4 {[%clk 0:01:50.4]} 13. gxf4 {[%clk 0:02:19.7]} 13... Rxf4 {[%clk 0:01:42.2]}
14. Nf1 {[%clk 0:02:18.1]} 14... Rf7 {[%clk 0:01:30.8]} 15. Be3 {[%clk
0:01:56.6]} 15... Bg5 {[%clk 0:01:27.6]} 16. Ng3 {[%clk 0:01:46.9]} 16... b6
{[%clk 0:01:18.2]} 17. c5 {[%clk 0:01:22.2]} 17... dxc5 {[%clk 0:01:03.4]} 18.
d5 {[%clk 0:01:22.6]} 18... Bxe3 {[%clk 0:00:56.7]} 19. fxe3 {[%clk 0:01:15.3]}
19... Na5 {[%clk 0:00:55]} 20. Rf1 {[%clk 0:01:14.5]} 20... Bd7 {[%clk
0:00:46.4]} 21. Rxf7 {[%clk 0:01:09.9]} 21... Kxf7 {[%clk 0:00:46.3]} 22. Rf1+
{[%clk 0:00:53.7]} 22... Kg8 {[%clk 0:00:45.6]} 23. Qe2 {[%clk 0:00:50.6]} 23...
Qe7 {[%clk 0:00:37.5]} 24. Qh5 {[%clk 0:00:48.9]} 24... g6 {[%clk 0:00:31.9]}
25. Qh6 {[%clk 0:00:46.8]} 25... Nc4 {[%clk 0:00:23.1]} 26. Rf2 {[%clk
0:00:33.8]} 26... Rf8 {[%clk 0:00:22.8]} 27. Bf1 {[%clk 0:00:26.1]} 27... Rxf2
{[%clk 0:00:21.5]} 28. Kxf2 {[%clk 0:00:27]} 28... Nd6 {[%clk 0:00:20.8]} 29.
Kg1 {[%clk 0:00:24.1]} 29... Qf6 {[%clk 0:00:20]} 30. Bh3 {[%clk 0:00:22.9]}
30... Bxh3 {[%clk 0:00:19.2]} 31. Qxh3 {[%clk 0:00:23.8]} 31... Kg7 {[%clk
0:00:18.4]} 32. Qd7+ {[%clk 0:00:24]} 32... Qf7 {[%clk 0:00:18.7]} 33. Qc6
{[%clk 0:00:24.2]} 33... h5 {[%clk 0:00:17.7]} 34. Kg2 {[%clk 0:00:16]} 34... a5
{[%clk 0:00:17.9]} 35. h4 {[%clk 0:00:14.9]} 35... Qe7 {[%clk 0:00:17.4]} 36. a4
{[%clk 0:00:15.3]} 36... Kh6 {[%clk 0:00:17]} 37. Qa8 {[%clk 0:00:15.1]} 37...
Kg7 {[%clk 0:00:16.3]} 38. Qb8 {[%clk 0:00:14.3]} 38... Nc4 {[%clk 0:00:15.5]}
39. Nf1 {[%clk 0:00:13.7]} 39... Qf7 {[%clk 0:00:12.5]} 40. Qd8 {[%clk
0:00:13.3]} 40... Nd2 {[%clk 0:00:11.6]} 41. Ng3 {[%clk 0:00:11.8]} 41... g5
{[%clk 0:00:12.5]} 42. Qxg5+ {[%clk 0:00:10.6]} 42... Qg6 {[%clk 0:00:12.7]} 43.
Nxh5+ {[%clk 0:00:10]} 43... Kf7 {[%clk 0:00:12.5]} 44. Qxg6+ {[%clk 0:00:08.4]}
44... Kxg6 {[%clk 0:00:13.4]} 45. Ng3 {[%clk 0:00:09.1]} 45... Nb1 {[%clk
0:00:13.1]} 46. c4 {[%clk 0:00:08.3]} 46... Nc3 {[%clk 0:00:11.8]} 47. Kh3
{[%clk 0:00:08.8]} 47... Nxa4 {[%clk 0:00:11.3]} 48. Kg4 {[%clk 0:00:09.7]}
48... Nc3 {[%clk 0:00:11]} 49. h5+ {[%clk 0:00:10.6]} 49... Kf7 {[%clk
0:00:11.2]} 50. Kf5 {[%clk 0:00:09.2]} 50... a4 {[%clk 0:00:10.9]} 51. h6 {[%clk
0:00:09.8]} 51... a3 {[%clk 0:00:11.1]} 52. Nh5 {[%clk 0:00:10.4]} 52... Kg8
{[%clk 0:00:11.2]} 53. Nf6+ {[%clk 0:00:09.4]} 53... Kh8 {[%clk 0:00:11.2]} 54.
Nd7 {[%clk 0:00:05.9]} 54... a2 {[%clk 0:00:12.1]} 55. Nxe5 {[%clk 0:00:03.6]}
55... a1=Q {[%clk 0:00:07.4]} 56. Kg6 {[%clk 0:00:03.6]} 56... Qg1+ {[%clk
0:00:07.1]} 57. Kf6 {[%clk 0:00:04]} 57... Nxe4+ {[%clk 0:00:07.1]} 58. Kf7
{[%clk 0:00:03.8]} 58... Kh7 {[%clk 0:00:07.6]} 59. Ke6 {[%clk 0:00:03.4]} 59...
Nd6 {[%clk 0:00:08.5]} 60. Kd7 {[%clk 0:00:03.6]} 60... Qg5 {[%clk 0:00:08.4]}
61. Nc6 {[%clk 0:00:03.1]} 61... Nxc4 {[%clk 0:00:08.3]} 62. Kxc7 {[%clk
0:00:04]} 62... Qxh6 {[%clk 0:00:08.7]} 63. e4 {[%clk 0:00:03.3]} 63... Qd6+
{[%clk 0:00:09.6]} 64. Kb7 {[%clk 0:00:03.5]} 64... b5 {[%clk 0:00:09.8]} 65.
Nb8 {[%clk 0:00:02.4]} 65... b4 {[%clk 0:00:09]} 66. Na6 {[%clk 0:00:03]} 66...
b3 {[%clk 0:00:09.2]} 0-1

[Event "*** Titled Tuesday Blitz"]
[Site "Chess.com"]
[Date "2020.05.12"]
[Round "5"]
[White "grunbergmihai"]
[Black "CyberneticLion"]
[Result "1/2-1/2"]
[WhiteElo "2402"]
[BlackElo "2541"]
[TimeControl "180+1"]
[EndTime "10:57:05 PDT"]
[Termination "Game drawn by stalemate"]

1. Nf3 {[%clk 0:03:00.9]} 1... d5 {[%clk 0:02:59.7]} 2. c4 {[%clk 0:02:57.7]}
2... e6 {[%clk 0:02:58.9]} 3. g3 {[%clk 0:02:57.5]} 3... Nf6 {[%clk 0:02:59]} 4.
Bg2 {[%clk 0:02:57.3]} 4... c6 {[%clk 0:02:58.7]} 5. O-O {[%clk 0:02:58.2]} 5...
Be7 {[%clk 0:02:59.1]} 6. d4 {[%clk 0:02:58.2]} 6... O-O {[%clk 0:02:59.3]} 7.
Qc2 {[%clk 0:02:58]} 7... Nbd7 {[%clk 0:02:59.7]} 8. Rd1 {[%clk 0:02:57.7]} 8...
b6 {[%clk 0:02:54.7]} 9. b3 {[%clk 0:02:57.5]} 9... Ba6 {[%clk 0:02:50.7]} 10.
a4 {[%clk 0:02:57.2]} 10... Rc8 {[%clk 0:02:48.9]} 11. a5 {[%clk 0:02:56.8]}
11... Bb7 {[%clk 0:02:45.1]} 12. axb6 {[%clk 0:02:39.9]} 12... axb6 {[%clk
0:02:46]} 13. Nc3 {[%clk 0:02:39.2]} 13... c5 {[%clk 0:02:33.3]} 14. Bb2 {[%clk
0:02:33.4]} 14... dxc4 {[%clk 0:02:22.3]} 15. bxc4 {[%clk 0:02:32.6]} 15... cxd4
{[%clk 0:02:22.6]} 16. Rxd4 {[%clk 0:02:31.7]} 16... Bc5 {[%clk 0:02:21.9]} 17.
Rh4 {[%clk 0:02:29.6]} 17... h6 {[%clk 0:02:15.5]} 18. Ra7 {[%clk 0:02:15.7]}
18... Ba8 {[%clk 0:01:48.5]} 19. Nb5 {[%clk 0:02:07.8]} 19... Qe7 {[%clk
0:01:42]} 20. Ne5 {[%clk 0:01:55.1]} 20... Bxg2 {[%clk 0:01:38.4]} 21. Kxg2
{[%clk 0:01:55]} 21... Qd8 {[%clk 0:01:32]} 22. Nxd7 {[%clk 0:01:43]} 22... Nxd7
{[%clk 0:01:32.9]} 23. Rf4 {[%clk 0:01:22.5]} 23... Ra8 {[%clk 0:01:16.8]} 24.
Rf3 {[%clk 0:01:12.4]} 24... Rxa7 {[%clk 0:01:09.8]} 25. Nxa7 {[%clk 0:01:12.4]}
25... Qb8 {[%clk 0:01:10.6]} 26. Nb5 {[%clk 0:01:07.9]} 26... Ne5 {[%clk
0:01:10.4]} 27. Qc3 {[%clk 0:00:59]} 27... f6 {[%clk 0:01:07.5]} 28. Rf4 {[%clk
0:00:57.1]} 28... Qb7+ {[%clk 0:01:05.3]} 29. f3 {[%clk 0:00:55.4]} 29... Rd8
{[%clk 0:01:03.8]} 30. Re4 {[%clk 0:00:50.7]} 30... Rd1 {[%clk 0:00:59.8]} 31.
e3 {[%clk 0:00:45.8]} 31... Rd3 {[%clk 0:00:46.5]} 32. Qc2 {[%clk 0:00:36.7]}
32... Rxe3 {[%clk 0:00:41.9]} 33. Bxe5 {[%clk 0:00:31.8]} 33... Rxe4 {[%clk
0:00:24.7]} 34. Qxe4 {[%clk 0:00:31.2]} 34... Qxe4 {[%clk 0:00:24.9]} 35. fxe4
{[%clk 0:00:32.1]} 35... fxe5 {[%clk 0:00:25.8]} 36. Kf3 {[%clk 0:00:31.5]}
36... Kf7 {[%clk 0:00:25.7]} 37. Kg4 {[%clk 0:00:29.1]} 37... g6 {[%clk
0:00:25.3]} 38. Kf3 {[%clk 0:00:26.3]} 38... h5 {[%clk 0:00:24.6]} 39. h4 {[%clk
0:00:21.3]} 39... Ke7 {[%clk 0:00:24.5]} 40. g4 {[%clk 0:00:20.1]} 40... Kd7
{[%clk 0:00:24.3]} 41. gxh5 {[%clk 0:00:18.8]} 41... gxh5 {[%clk 0:00:25.2]} 42.
Nc3 {[%clk 0:00:17.5]} 42... Be7 {[%clk 0:00:25]} 43. Kg3 {[%clk 0:00:16.7]}
43... Kc6 {[%clk 0:00:25.5]} 44. Na4 {[%clk 0:00:16.2]} 44... Bd8 {[%clk
0:00:24.3]} 45. Kh3 {[%clk 0:00:15.6]} 45... Be7 {[%clk 0:00:23.9]} 46. Kg3
{[%clk 0:00:15.3]} 46... Bb4 {[%clk 0:00:24.1]} 47. Nb2 {[%clk 0:00:09.6]} 47...
Kc5 {[%clk 0:00:14]} 48. Na4+ {[%clk 0:00:09.6]} 48... Kxc4 {[%clk 0:00:12.6]}
49. Nxb6+ {[%clk 0:00:08.6]} 49... Kd4 {[%clk 0:00:13.5]} 50. Kf3 {[%clk
0:00:09.5]} 50... Be1 {[%clk 0:00:13.4]} 51. Nd7 {[%clk 0:00:09.6]} 51... Bxh4
{[%clk 0:00:13.1]} 52. Nf8 {[%clk 0:00:09.4]} 52... Bf6 {[%clk 0:00:11.4]} 53.
Nxe6+ {[%clk 0:00:09.1]} 53... Kd3 {[%clk 0:00:10.6]} 54. Nf4+ {[%clk 0:00:08]}
54... exf4 {[%clk 0:00:06.4]} 55. Kxf4 {[%clk 0:00:07.9]} 55... Ke2 {[%clk
0:00:06.3]} 56. Kg3 {[%clk 0:00:07.7]} 56... Ke3 {[%clk 0:00:04.1]} 57. e5
{[%clk 0:00:06.9]} 57... Be7 {[%clk 0:00:04.5]} 58. e6 {[%clk 0:00:06.6]} 58...
Ke4 {[%clk 0:00:03.6]} 59. Kh3 {[%clk 0:00:06.5]} 59... Kf5 {[%clk 0:00:03.8]}
60. Kg3 {[%clk 0:00:06.4]} 60... Kg5 {[%clk 0:00:03]} 61. Kh3 {[%clk 0:00:06.4]}
61... h4 {[%clk 0:00:03.9]} 62. Kg2 {[%clk 0:00:06.4]} 62... Kh5 {[%clk
0:00:04.8]} 63. Kh2 {[%clk 0:00:06.8]} 63... Kg4 {[%clk 0:00:05.1]} 64. Kg2
{[%clk 0:00:07.7]} 64... h3+ {[%clk 0:00:05.7]} 65. Kh2 {[%clk 0:00:07.8]} 65...
Bd6+ {[%clk 0:00:06.1]} 66. Kh1 {[%clk 0:00:07.7]} 66... Kg3 {[%clk 0:00:05.8]}
67. Kg1 {[%clk 0:00:07.8]} 67... Bc5+ {[%clk 0:00:04.9]} 68. Kh1 {[%clk
0:00:08.7]} 68... h2 {[%clk 0:00:04.9]} 69. e7 {[%clk 0:00:09.6]} 69... Bxe7
{[%clk 0:00:05.1]} 1/2-1/2

[Event "*** Titled Tuesday Blitz"]
[Site "Chess.com"]
[Date "2020.05.12"]
[Round "5"]
[White "Spartakus1975"]
[Black "Vaathi_Coming"]
[Result "0-1"]
[WhiteElo "2723"]
[BlackElo "2867"]
[TimeControl "180+1"]
[EndTime "10:57:06 PDT"]
[Termination "Vaathi_Coming won on time"]

1. e4 {[%clk 0:03:00.9]} 1... c5 {[%clk 0:02:59.2]} 2. c3 {[%clk 0:03:00.2]}
2... Nf6 {[%clk 0:02:56.6]} 3. e5 {[%clk 0:03:00.1]} 3... Nd5 {[%clk 0:02:57]}
4. Nf3 {[%clk 0:03:00.7]} 4... Nc6 {[%clk 0:02:56.7]} 5. d4 {[%clk 0:03:00.5]}
5... cxd4 {[%clk 0:02:57.1]} 6. cxd4 {[%clk 0:03:01.1]} 6... d6 {[%clk
0:02:57.7]} 7. Bc4 {[%clk 0:03:01.6]} 7... dxe5 {[%clk 0:02:52.7]} 8. dxe5
{[%clk 0:03:00.8]} 8... Ndb4 {[%clk 0:02:53]} 9. O-O {[%clk 0:02:59.1]} 9...
Qxd1 {[%clk 0:02:46.9]} 10. Rxd1 {[%clk 0:02:59.4]} 10... Bg4 {[%clk 0:02:38.9]}
11. e6 {[%clk 0:02:58.4]} 11... Bxe6 {[%clk 0:02:35.1]} 12. Bxe6 {[%clk
0:02:57.5]} 12... fxe6 {[%clk 0:02:36]} 13. Nc3 {[%clk 0:02:57.7]} 13... Rd8
{[%clk 0:02:17.3]} 14. Rxd8+ {[%clk 0:02:46.3]} 14... Nxd8 {[%clk 0:01:47.8]}
15. Be3 {[%clk 0:02:46.1]} 15... Ndc6 {[%clk 0:01:46.5]} 16. Rd1 {[%clk
0:02:42.1]} 16... g6 {[%clk 0:01:31.7]} 17. Ng5 {[%clk 0:02:25]} 17... Bh6
{[%clk 0:01:30.8]} 18. Nxe6 {[%clk 0:02:16.5]} 18... Bxe3 {[%clk 0:01:30.5]} 19.
fxe3 {[%clk 0:02:17]} 19... Kf7 {[%clk 0:01:30.9]} 20. Ng5+ {[%clk 0:02:15.2]}
20... Ke8 {[%clk 0:01:19.4]} 21. a3 {[%clk 0:02:00.4]} 21... Na6 {[%clk
0:01:17.8]} 22. Nd5 {[%clk 0:01:42.9]} 22... h6 {[%clk 0:01:15.8]} 23. Ne4
{[%clk 0:01:29.7]} 23... Kf7 {[%clk 0:01:02.6]} 24. Kf2 {[%clk 0:01:15.7]} 24...
Rd8 {[%clk 0:00:48.7]} 25. Ke2 {[%clk 0:01:15.2]} 25... g5 {[%clk 0:00:38]} 26.
b4 {[%clk 0:01:00.4]} 26... Nab8 {[%clk 0:00:36.8]} 27. Nc5 {[%clk 0:00:53.8]}
27... b6 {[%clk 0:00:30.8]} 28. Ne4 {[%clk 0:00:36.9]} 28... Ke6 {[%clk
0:00:29.9]} 29. Nc7+ {[%clk 0:00:32.1]} 29... Ke5 {[%clk 0:00:30.3]} 30. Nd2
{[%clk 0:00:25.8]} 30... Kd6 {[%clk 0:00:23]} 31. Nb5+ {[%clk 0:00:24.2]} 31...
Ke6 {[%clk 0:00:22.6]} 32. Rc1 {[%clk 0:00:22.5]} 32... a6 {[%clk 0:00:19.6]}
33. Nc7+ {[%clk 0:00:19.2]} 33... Kd6 {[%clk 0:00:16.5]} 34. Nxa6 {[%clk
0:00:18.6]} 34... Nxa6 {[%clk 0:00:16.2]} 35. b5 {[%clk 0:00:19.5]} 35... Nc5
{[%clk 0:00:10.9]} 36. Nc4+ {[%clk 0:00:19]} 36... Kc7 {[%clk 0:00:11.2]} 37.
bxc6 {[%clk 0:00:19.3]} 37... Kxc6 {[%clk 0:00:11.9]} 38. Ne5+ {[%clk
0:00:18.5]} 38... Kb7 {[%clk 0:00:09]} 39. Nf7 {[%clk 0:00:16.5]} 39... Ra8
{[%clk 0:00:09]} 40. Rc2 {[%clk 0:00:12]} 40... h5 {[%clk 0:00:04.6]} 41. Rc3
{[%clk 0:00:12.9]} 41... g4 {[%clk 0:00:04]} 42. Ng5 {[%clk 0:00:13.8]} 42...
Ra5 {[%clk 0:00:03.4]} 43. Nf7 {[%clk 0:00:11.1]} 43... Ne4 {[%clk 0:00:03.7]}
44. Rd3 {[%clk 0:00:09.9]} 44... Nc5 {[%clk 0:00:04.4]} 45. Rc3 {[%clk
0:00:08.9]} 45... Rb5 {[%clk 0:00:04.9]} 46. Rc2 {[%clk 0:00:02.7]} 46... Rb3
{[%clk 0:00:05.1]} 47. h3 {[%clk 0:00:01.8]} 47... gxh3 {[%clk 0:00:04.8]} 48.
gxh3 {[%clk 0:00:02.4]} 48... Rxa3 {[%clk 0:00:05.3]} 49. Ne5 {[%clk 0:00:02.9]}
49... Rb3 {[%clk 0:00:04.6]} 50. Nc4 {[%clk 0:00:03.4]} 50... Rb1 {[%clk
0:00:03.8]} 51. Ne5 {[%clk 0:00:02.9]} 51... Rb4 {[%clk 0:00:03.9]} 52. Kf3
{[%clk 0:00:02.4]} 52... Ka6 {[%clk 0:00:02.9]} 53. Ng6 {[%clk 0:00:02.9]} 53...
e6 {[%clk 0:00:02.8]} 54. Nf4 {[%clk 0:00:03.1]} 54... h4 {[%clk 0:00:03.1]} 55.
Ng6 {[%clk 0:00:03.3]} 55... Kb5 {[%clk 0:00:03.3]} 56. Nf4 {[%clk 0:00:01.6]}
56... Rb3 {[%clk 0:00:03.2]} 57. Rd2 {[%clk 0:00:02]} 57... e5 {[%clk
0:00:02.9]} 58. Ng6 {[%clk 0:00:02.5]} 58... e4+ {[%clk 0:00:03.4]} 59. Kf4
{[%clk 0:00:02.4]} 59... Kc4 {[%clk 0:00:04]} 60. Nxh4 {[%clk 0:00:02.5]} 60...
b5 {[%clk 0:00:04.4]} 61. Nf5 {[%clk 0:00:03]} 61... b4 {[%clk 0:00:04.1]} 62.
Nd6+ {[%clk 0:00:03.2]} 62... Kc3 {[%clk 0:00:04.4]} 63. Rd4 {[%clk 0:00:03.5]}
63... Nd3+ {[%clk 0:00:02.7]} 64. Kxe4 {[%clk 0:00:02.8]} 64... Nf2+ {[%clk
0:00:03.1]} 65. Kd5 {[%clk 0:00:03.2]} 65... Rb1 {[%clk 0:00:02.8]} 0-1